Cogmind - Beta 13 @@@ ROGUE MODE // 2024.04.15 @ 23:39:25 Player: Nebula avali Result: Destroyed by S-27 Virus with Autogun Performance ------------- Evolutions (5) 2500 Regions Visited (13) 2600 Robots Destroyed (52) 260 Value Destroyed (1844) 1844 Prototype IDs (33) 660 Alien Tech Used (0) 0 Bonus (1391) 1391 TOTAL SCORE: 9255 Bonus ------- Follower Combat Kills 391 Entered Garrisons 200 Entered DSFs 500 Aligned with FarCom 300 Cogmind --------- Core Integrity 0/1000 Matter 270/300 Energy 100/100 System Corruption 1% Temperature Cool (0) Movement Hovering (70) Location -5/Upper Caves Parts ------- > --- POWER (2) -------- (None) > --- PROPULSION (6) --- Gyrokinetic Inverter > --- UTILITY (7) ------ Improved Melee Analysis Suite Improved Transmission Jammer System Shield Authchip [R/Combat] > --- WEAPON (2) ------- Chainsword > --- INVENTORY (5) ---- Improved Reaction Control System Improved Recalibrator Improved Plasma Cutter Force Lance Force Lance Peak State ------------ > --- POWER ------------ Angular Momentum Engine Light Fission Core > --- PROPULSION ------- Xenon Bombardment Thruster Xenon Bombardment Thruster Xenon Bombardment Thruster Xenon Bombardment Thruster Cooled Nuclear Pulse Thruster Cooled Nuclear Pulse Thruster > --- UTILITY ---------- Advanced Weight Redist. System Hacking Suite Hacking Suite Improved Hacking Suite System Shield System Shield System Shield > --- WEAPON ----------- Improved Remote Datajack Katana > --- INVENTORY -------- Angular Momentum Engine Improved Reaction Control System AWS/Thermal KE Penetrator [Rating: 75] Favorites ----------- Power Angular Momentum Engine Engine Angular Momentum Engine Power Core Light Nuclear Core Propulsion Aluminum Leg Treads Light Treads Leg Aluminum Leg Wheel Wheel Hover Unit Gyrokinetic Inverter Flight Unit Xenon Bombardment Thruster Utility System Shield Device Advanced Weight Redist. System Storage Large Storage Unit Processor Improved Targeting Computer Hackware System Shield Protection Reflective Plating Weapon Improved Medium Laser Energy Gun Improved Medium Laser Ballistic Gun Light Assault Rifle Launcher Heavy Missile Launcher Special Weapon Improved Remote Datajack Slashing Weapon Katana Piercing Weapon Force Lance Special Melee Weapon Improved Datajack Build | -11 -10 -9 -9 -9 -8 -8 -7 -7 -6 -5 -5 -5 -5 ------- Run | Yrd Mat Mat Min Exi Min Mat Fac DSF Fac Fac Gar Fac Upp Slots Evolved 10 | . . 2 . . . 2 2 . 2 2 . . . Power 1 | . . . . . . . . . 1 . . . . Propulsion 4 | . . 2 . . . . . . 1 1 . . . Utility 5 | . . . . . . 2 2 . . 1 . . . Weapon . | . . . . . . . . . . . . . . Parts Attached 106 | . 5 8 3 2 9 13 1 15 17 11 8 9 5 Power 14 | . . 1 1 . 1 1 . 3 2 1 3 1 . Engine 11 | . . 1 . . 1 1 . 3 2 . 3 . . Core 3 | . . . 1 . . . . . . 1 . 1 . Reactor . | . . . . . . . . . . . . . . Propulsion 38 | . . 2 1 1 5 5 . 9 6 4 1 3 1 Treads 2 | . . 2 . . . . . . . . . . . Leg 12 | . . . 1 . 5 3 . 3 . . . . . Wheel 2 | . . . . 1 . 1 . . . . . . . Hover 3 | . . . . . . . . . . . . 2 1 Flight 19 | . . . . . . 1 . 6 6 4 1 1 . Utility 28 | . 1 1 1 1 1 3 . 2 7 2 1 4 4 Device 5 | . . . . . . . . . 1 . . 1 3 Storage 2 | . . . 1 1 . . . . . . . . . Processor 4 | . . . . . . 3 . . . . . 1 . Hackware 13 | . . . . . . . . 2 6 2 1 2 . Protection 4 | . 1 1 . . 1 . . . . . . . 1 Artifact . | . . . . . . . . . . . . . . Weapon 26 | . 4 4 . . 2 4 1 1 2 4 3 1 . Energy Gun 5 | . . 2 . . 1 . . 1 . 1 . . . Energy Cannon . | . . . . . . . . . . . . . . Ballistic Gun 10 | . 2 2 . . 1 3 1 . . . 1 . . Ballistic Cannon . | . . . . . . . . . . . . . . Launcher 3 | . 2 . . . . 1 . . . . . . . Special Weapon 3 | . . . . . . . . . . 2 1 . . Impact Weapon . | . . . . . . . . . . . . . . Slashing Weapon 3 | . . . . . . . . . 1 1 . 1 . Piercing Weapon 1 | . . . . . . . . . . . 1 . . Special Melee Weapon 1 | . . . . . . . . . 1 . . . . Unidentified Prototypes 5 | . . 1 . . . 2 . . . 1 . . 1 Parts Lost 46 | . . . . . 3 3 . 9 4 6 15 2 4 Power 7 | . . . . . 1 . . 2 . . 3 . 1 Propulsion 19 | . . . . . 1 2 . 3 2 4 5 . 2 Utility 15 | . . . . . 1 1 . 3 2 1 5 1 1 Weapon 5 | . . . . . . . . 1 . 1 2 1 . Highest Loss Streak 15 | . . . . . 2 1 . 8 4 4 15 1 4 To Critical Strikes . | . . . . . . . . . . . . . . Average Slot Usage (%) 85 | . 93 85 100 100 89 82 76 69 88 91 79 40 52 Engine 6 | . 14 11 8 . 2 9 7 3 8 6 7 . . Core 2 | . . . 2 11 7 . . . . 3 1 1 4 Treads 5 | . . 8 22 22 4 . . . . . . . . Leg 15 | . 28 22 22 17 38 32 15 8 . . . . . Flight 9 | . . . . . . . . 12 31 29 20 . 3 Device 1 | . . . . . . . . . . 5 5 1 3 Storage 6 | . 14 11 11 11 11 9 7 7 . . . . . Processor 1 | . . . . . . 7 23 16 . . . 1 5 Hackware 12 | . . . . . . . . 8 36 33 31 19 16 Protection 3 | . 7 11 11 11 2 4 . . . . . . 1 Energy Gun 8 | . 1 1 22 22 18 4 . 5 2 . . . . Ballistic Gun 3 | . 22 19 . . 3 11 7 1 . . . . . Slashing Weapon 1 | . . . . . . . . . 3 4 4 1 5 Naked Turns . | . . . . . . . . . . . . . . Heaviest Build 41 | 11 14 20 25 35 35 41 41 40 29 32 28 29 23 Greatest Support 50 | 20 20 20 20 20 45 50 16 38 33 45 33 25 25 Greatest Overweight (x) 7 | . . . 1 3 3 2 2 7 1 . 1 1 2 Average Overweight (x) . | . . . . 1 . . 2 1 . . . . . Largest Inventory Capacity 15 | . 8 8 10 15 15 15 15 15 15 5 5 5 5 Average Capacity 9 | . 8 8 8 10 15 15 15 15 5 5 5 5 5 Most Carried 15 | . 8 8 10 10 15 15 15 15 14 5 5 5 5 Average Carried 8 | . 6 7 8 9 14 14 14 13 4 4 4 4 5 Final Capacity 15 | 8 8 8 10 15 15 15 15 15 5 5 5 5 5 Final Carried 15 | 6 8 8 10 10 15 15 15 15 5 4 5 5 5 Class Distribution -------------------- 38% | Mutant 20% | Scavenger-Mutant 16% | Wizard-Sprinter 12% | Hacker-Sprinter 10% | Hacker-Mutant Dominant Class ---------------- Mutant | -10/Materials Mutant | -9/Materials Mutant | -9/Mines Mutant | -9/Exiles Scavenger-Mutant | -8/Mines Scavenger-Mutant | -8/Materials Mutant | -7/Factory Mutant | -7/DSF Wizard-Sprinter | -6/Factory Wizard-Sprinter | -5/Factory Hacker-Sprinter | -5/Garrison Hacker-Mutant | -5/Factory Hacker-Mutant | -5/Upper Caves Resources | -11 -10 -9 -9 -9 -8 -8 -7 -7 -6 -5 -5 -5 -5 ----------- Run | Yrd Mat Mat Min Exi Min Mat Fac DSF Fac Fac Gar Fac Upp Matter Collected 1891 | 200 14 150 182 . 197 284 67 281 128 149 154 80 5 Remotely . | . . . . . . . . . . . . . . Salvage Created 2265 | . 14 144 43 . 310 729 . 702 . . 225 . 98 Parts 109 | . 3 12 1 . 21 27 . 36 . . 7 . 2 Haulers Intercepted 1 | . . . . . . . . . . . . . 1 Recyclers Shooed . | . . . . . . . . . . . . . . Parts Field Recycled . | . . . . . . . . . . . . . . Retrieved Matter . | . . . . . . . . . . . . . . Parts Self-Destructed 2 | . . . . . . . . . . . . . 2 Prevented . | . . . . . . . . . . . . . . Kills | -11 -10 -9 -9 -9 -8 -8 -7 -7 -6 -5 -5 -5 -5 ------- Run | Yrd Mat Mat Min Exi Min Mat Fac DSF Fac Fac Gar Fac Upp Combat Hostiles Destroyed 41 | . . 6 1 . 11 13 . 10 . . . . . Guns 33 | . . 6 . . 11 6 . 10 . . . . . AOE 7 | . . . . . . 7 . . . . . . . Classes Destroyed 11 | . 1 2 . . . 4 . 3 . . . . 1 Worker 1 | . . . . . . 1 . . . . . . . Builder 1 | . . . . . . 1 . . . . . . . Hauler 1 | . . . . . . . . . . . . . 1 Recycler 4 | . . . . . . 4 . . . . . . . Watcher 4 | . 1 1 . . . 2 . . . . . . . Swarmer 10 | . . 3 . . 7 . . . . . . . . Grunt 24 | . . 3 1 . 4 12 . 4 . . . . . Duelist 1 | . . . . . . . . 1 . . . . . Specialist 3 | . . . . . . . . 3 . . . . . Hunter 2 | . . . . . . 1 . 1 . . . . . Heavy 1 | . . . . . . . . 1 . . . . . Best Kill Streak 16 | . 1 5 1 . 4 16 . 3 . . . . 1 Combat Bots Only 8 | . . 5 1 . 4 8 . 3 . . . . . Max Kills in Single Turn 6 | . 1 1 1 . 2 6 . 1 . . . . 1 Gunslinging 1 | . . . . . 1 . . . . . . . . Exploded 3 | . . . . . . 3 . . . . . . . Melee . | . . . . . . . . . . . . . . Uniques/NPCs Destroyed . | . . . . . . . . . . . . . . Combat | -11 -10 -9 -9 -9 -8 -8 -7 -7 -6 -5 -5 -5 -5 -------- Run | Yrd Mat Mat Min Exi Min Mat Fac DSF Fac Fac Gar Fac Upp Hostile Shots Fired 560 | . . 42 3 . 70 74 . 48 11 40 178 9 85 Missed 209 | . . 10 . . 9 17 . 14 5 23 83 5 43 Damage Taken 6147 | . . 279 39 . 815 914 . 1086 411 457 1260 79 807 Core 1909 | . . 30 . . 136 165 . 393 170 112 538 19 346 Absorbed by Shields 158 | . . . . . . . . . . 5 153 . . Redirected to Shielding 77 | . . . . . . 52 . . . . . . 25 Ignored by Resistances 65 | . . 15 6 . 44 . . . . . . . . Regen/Repaired (Parts) 16 | . . . . . . . . . 16 . . . . Core Remaining (%) 75 | 100 100 . . . 58 70 . 43 80 . . . . Volleys Fired 108 | . 3 20 4 . 39 29 . 4 . . 9 . . Largest 2 | . 2 2 2 . 2 2 . 2 . . 1 . . Hottest 125 | . 40 112 112 . 125 89 . 62 . . 33 . . Shots Fired 247 | . 4 40 8 . 75 51 . 59 . 1 9 . . Gun 228 | . 4 40 8 . 75 42 . 56 . 1 2 . . Cannon . | . . . . . . . . . . . . . . Launcher 12 | . . . . . . 9 . 3 . . . . . Special 7 | . . . . . . . . . . . 7 . . Kinetic 85 | . 4 38 . . . 37 . 4 . . 2 . . Thermal 143 | . . 2 8 . 75 5 . 52 . 1 . . . Explosive 12 | . . . . . . 9 . 3 . . . . . Electromagnetic . | . . . . . . . . . . . . . . Robot Hit Streak 52 | . 2 5 5 . 6 23 . 52 . 12 2 . . Robot Miss Streak 9 | . 1 7 1 . 9 2 . 1 . . 1 . . Penetration Max . | . . . . . . . . . . . . . . Secondary Targets 2 | . . 1 . . 1 . . . . . . . . Max Gunslinging Chain 1 | . . 1 . . 1 . . . . . . . . Autonomous 53 | . . . . . . . . 52 . 1 . . . Shots Hit Robots 193 | . 3 26 6 . 33 41 . 56 2 1 23 . 2 Core Hits 97 | . 2 13 . . 16 37 . 23 . . 5 . 1 Critical Kills . | . . . . . . . . . . . . . . Critical Parts Destroyed . | . . . . . . . . . . . . . . Critical Strikes 4 | . . . . . 3 . . . . . 1 . . Burn 3 | . . . . . 3 . . . . . . . . Sever 1 | . . . . . . . . . . . 1 . . Melee Attacks 70 | . . . . . . . . . 22 10 29 2 7 Impact . | . . . . . . . . . . . . . . Slashing 66 | . . . . . . . . . 21 10 28 . 7 Piercing 3 | . . . . . . . . . . . 1 2 . Sneak Attacks 3 | . . . . . . . . . 1 . . . 2 Combat Hostiles 1 | . . . . . . . . . . . . . 1 Follow-up Attacks . | . . . . . . . . . . . . . . Damage Inflicted 6409 | . 24 416 103 . 605 2026 . 1775 39 37 1228 . 156 Guns 3056 | . 24 416 103 . 605 472 . 1399 . 37 . . . Cannons . | . . . . . . . . . . . . . . Explosions 1930 | . . . . . . 1554 . 376 . . . . . Melee 1415 | . . . . . . . . . 39 . 1220 . 156 Ramming 8 | . . . . . . . . . . . 8 . . Kinetic 842 | . 24 381 . . . 380 . 57 . . . . . Thermal 2214 | . . 35 103 . 605 92 . 1342 . 37 . . . Explosive 1930 | . . . . . . 1554 . 376 . . . . . Electromagnetic . | . . . . . . . . . . . . . . Impact . | . . . . . . . . . . . . . . Slashing 1415 | . . . . . . . . . 39 . 1220 . 156 Piercing . | . . . . . . . . . . . . . . Highest Corruption 16 | . . . . . . . . 5 16 1 1 1 1 Average Corruption 3 | . . . . . . . . 5 16 1 1 1 1 Corruption Purged . | . . . . . . . . . . . . . . Corruption Blocked . | . . . . . . . . . . . . . . Effects 28 | . . . . . . . . 7 13 . 5 2 1 Message Errors 6 | . . . . . . . . 1 2 . 1 2 . Matter Fused 11 | . . . . . . . . 2 6 . 3 . . Heat Flow Errors 4 | . . . . . . . . 1 2 . 1 . . Energy Discharges 2 | . . . . . . . . 1 1 . . . . Parts Rejected 1 | . . . . . . . . . . . . . 1 Data Loss (minor) 3 | . . . . . . . . 1 2 . . . . Alerts 1 | . . . . . . . . 1 . . . . . Overload Shots . | . . . . . . . . . . . . . . Overflow Damage 163 | . . . . . . 163 . . . . . . . Projectiles . | . . . . . . . . . . . . . . Explosions 163 | . . . . . . 163 . . . . . . . Melee . | . . . . . . . . . . . . . . Knockbacks . | . . . . . . . . . . . . . . Impact . | . . . . . . . . . . . . . . Kinetic . | . . . . . . . . . . . . . . Secondary . | . . . . . . . . . . . . . . Self-Inflicted Damage 12 | . . . . . . 9 . . . . 3 . . Shots 2 | . . . . . . 2 . . . . . . . Rammed 7 | . . . . . . . . . . . 7 . . Targets Rammed 7 | . . . . . . . . . . . 7 . . Kicked . | . . . . . . . . . . . . . . Crushed . | . . . . . . . . . . . . . . Highest Temperature 546 | . 6 51 231 . 546 128 . 133 290 43 294 . 19 Average Temperature 151 | . 4 12 113 . 254 38 . 80 128 13 60 . 11 Received Heat Transfer 1762 | . . 54 27 . 297 459 . 108 12 42 442 27 294 Effects 13 | . . . . . 13 . . . . . . . . Shutdowns 3 | . . . . . 3 . . . . . . . . Energy Bleed 1 | . . . . . 1 . . . . . . . . Interference 1 | . . . . . 1 . . . . . . . . Matter Decay 4 | . . . . . 4 . . . . . . . . Short Circuit 1 | . . . . . 1 . . . . . . . . Damage (minor) 2 | . . . . . 2 . . . . . . . . Damage (core) 1 | . . . . . 1 . . . . . . . . Siege Activations . | . . . . . . . . . . . . . . Robots Corrupted . | . . . . . . . . . . . . . . Combat Hostiles . | . . . . . . . . . . . . . . Parts Fried . | . . . . . . . . . . . . . . Impact Corruptions . | . . . . . . . . . . . . . . Robots Melted 1 | . . . 1 . . . . . . . . . . Combat Hostiles 1 | . . . 1 . . . . . . . . . . Parts Melted 4 | . . . 2 . 2 . . . . . . . . Heat Transferred 3737 | . . 74 222 . 1517 185 . 1702 . 37 . . . Parts Sabotaged . | . . . . . . . . . . . . . . Parts Stolen . | . . . . . . . . . . . . . . Parts Stripped . | . . . . . . . . . . . . . . Power Chain Reactions . | . . . . . . . . . . . . . . Alert | -11 -10 -9 -9 -9 -8 -8 -7 -7 -6 -5 -5 -5 -5 ------- Run | Yrd Mat Mat Min Exi Min Mat Fac DSF Fac Fac Gar Fac Upp Peak Influence 466 | . 27 183 70 . 304 380 187 382 254 131 466 255 . Initial 233 | . . 11 70 . . 7 172 130 200 35 70 233 . Average 122 | . 14 64 27 . 137 84 178 234 126 77 240 238 . Maximum Alert Level 2 | . . . . . 1 1 . 1 1 . 2 1 . Low Security (%) 69 | . 100 100 100 . 69 83 100 35 61 100 32 . . Level 1 29 | . . . . . 30 16 . 64 38 . 65 100 . Level 2 . | . . . . . . . . . . . 1 . . Level 3 . | . . . . . . . . . . . . . . Level 4 . | . . . . . . . . . . . . . . Level 5 . | . . . . . . . . . . . . . . High Security . | . . . . . . . . . . . . . . Max Security . | . . . . . . . . . . . . . . Sterilizations 1 | . . . . . . . . 1 . . . . . Squads Dispatched 22 | . . 1 . . . 4 1 4 3 7 . 2 . Investigation 9 | . . . . . . 2 1 . . 5 . 1 . Extermination 5 | . . . . . . . . . 3 1 . 1 . Reinforcement 8 | . . 1 . . . 2 . 4 . 1 . . . Assault . | . . . . . . . . . . . . . . Garrison . | . . . . . . . . . . . . . . Intercept . | . . . . . . . . . . . . . . Searches Triggered . | . . . . . . . . . . . . . . Construction Impeded . | . . . . . . . . . . . . . . Haulers Reinforced . | . . . . . . . . . . . . . . Active Scanning Responses . | . . . . . . . . . . . . . . Cargo Convoy Interrupts . | . . . . . . . . . . . . . . Stealth | -11 -10 -9 -9 -9 -8 -8 -7 -7 -6 -5 -5 -5 -5 --------- Run | Yrd Mat Mat Min Exi Min Mat Fac DSF Fac Fac Gar Fac Upp Distress Signals 8 | . . . . . . 3 . . 3 . 1 1 . Communications Jammed . | . . . . . . . . . . . . . . Distress Signals . | . . . . . . . . . . . . . . Times Spotted 148 | . 2 12 2 . 13 19 . 15 11 22 26 9 17 Peak Tracking Total 19 | . 1 5 2 . 4 10 . 6 5 19 14 5 13 Tactical Retreats 20 | . . . . . . 1 . 3 2 4 4 1 5 Traps | -11 -10 -9 -9 -9 -8 -8 -7 -7 -6 -5 -5 -5 -5 ------- Run | Yrd Mat Mat Min Exi Min Mat Fac DSF Fac Fac Gar Fac Upp Traps Triggered 14 | . . . . . . 1 . 2 . 3 8 . . Indirectly . | . . . . . . . . . . . . . . Trap Hack Attempts . | . . . . . . . . . . . . . . Triggered . | . . . . . . . . . . . . . . Disarmed . | . . . . . . . . . . . . . . Reprogrammed 4 | . . . . . . . 4 . . . . . . Reused 1 | . . . . . . . 1 . . . . . . Traps Extracted . | . . . . . . . . . . . . . . Installed . | . . . . . . . . . . . . . . Triggered 1 | . . . . . . . 1 . . . . . . Machines | -11 -10 -9 -9 -9 -8 -8 -7 -7 -6 -5 -5 -5 -5 ---------- Run | Yrd Mat Mat Min Exi Min Mat Fac DSF Fac Fac Gar Fac Upp Machines Disabled 14 | . . . . . 7 5 . . . . 2 . . Max in Single Turn 4 | . . . . . 2 4 . . . . . . . Machines Repaired . | . . . . . . . . . . . . . . Machines Dismantled . | . . . . . . . . . . . . . . Machines Sabotaged . | . . . . . . . . . . . . . . Overloaded Fab Kills . | . . . . . . . . . . . . . . Hacking | -11 -10 -9 -9 -9 -8 -8 -7 -7 -6 -5 -5 -5 -5 --------- Run | Yrd Mat Mat Min Exi Min Mat Fac DSF Fac Fac Gar Fac Upp Machines Accessed 29 | . 1 3 . 1 . 3 2 . 7 6 2 4 . Terminals 21 | . 1 3 . . . 2 2 . 5 2 2 4 . Fabricators 3 | . . . . . . . . . . 3 . . . Repair Stations 1 | . . . . . . . . . 1 . . . . Recycling Units 2 | . . . . . . 1 . . 1 . . . . Scanalyzers . | . . . . . . . . . . . . . . Garrison Access 1 | . . . . . . . . . . 1 . . . Total Hacks 110 | . 3 6 . 1 . 8 6 . 37 25 9 15 . Successful 54 | . 1 2 . 1 . 2 3 . 30 8 4 3 . Failed 56 | . 2 4 . . . 6 3 . 7 17 5 12 . Catastrophic 9 | . 1 2 . . . 1 1 . 1 1 . 2 . Database Lockouts . | . . . . . . . . . . . . . . Manual 82 | . 3 6 . 1 . 9 5 . 25 13 8 12 . Terminals 89 | . 3 6 . . . 7 6 . 30 13 9 15 . Fabricators 11 | . . . . . . . . . . 11 . . . Repair Stations 3 | . . . . . . . . . 3 . . . . Recycling Units 5 | . . . . . . 1 . . 4 . . . . Scanalyzers . | . . . . . . . . . . . . . . Garrison Access 1 | . . . . . . . . . . 1 . . . Terminal Hacks 25 | . . . . 1 . 1 2 . 19 . 1 1 . Part Schematic 2 | . . . . . . . . . 2 . . . . Prototype ID Bank 2 | . . . . . . . . . 2 . . . . Open DSF 3 | . . . . . . . 1 . 1 . . 1 . Level Access Points 1 | . . . . . . . . . 1 . . . . Branch Access Points 2 | . . . . . . 1 . . 1 . . . . Emergency Access Points 1 | . . . . . . . . . 1 . . . . Machine Index 1 | . . . . . . . . . 1 . . . . Alert Level 1 | . . . . . . . . . 1 . . . . Locate Traps 1 | . . . . . . . . . 1 . . . . Reprogram Traps 2 | . . . . . . . 1 . 1 . . . . Reinforcement Status 1 | . . . . . . . . . 1 . . . . Recall Extermination 2 | . . . . . . . . . 2 . . . . Zone Layout 1 | . . . . . . . . . 1 . . . . Garrison Registry 2 | . . . . . . . . . 1 . 1 . . Patrol Navigation 1 | . . . . . . . . . 1 . . . . Security Stations 1 | . . . . . . . . . 1 . . . . Derelict Proto ID Bank 1 | . . . . 1 . . . . . . . . . Fabricator Hacks 5 | . . . . . . . . . . 5 . . . Load Schematic 3 | . . . . . . . . . . 3 . . . Build 2 | . . . . . . . . . . 2 . . . Repair Station Hacks 2 | . . . . . . . . . 2 . . . . Scan Component 1 | . . . . . . . . . 1 . . . . Repair 1 | . . . . . . . . . 1 . . . . Recycling Unit Hacks 2 | . . . . . . . . . 2 . . . . Report Inventory 1 | . . . . . . . . . 1 . . . . Retrieve Matter 1 | . . . . . . . . . 1 . . . . Scanalyzer . | . . . . . . . . . . . . . . Garrison Access Hacks 1 | . . . . . . . . . . 1 . . . Unlock Access 1 | . . . . . . . . . . 1 . . . Unauthorized Hacks 19 | . 1 2 . . . 1 1 . 7 2 3 2 . Terminals 17 | . 1 2 . . . . 1 . 6 2 3 2 . Track 2 | . . . . . . . . . 1 . 1 . . Assimilate 1 | . . . . . . . . . 1 . . . . Botnet 12 | . 1 2 . . . . 1 . 4 2 . 2 . Disrupt 1 | . . . . . . . . . . . 1 . . Override 1 | . . . . . . . . . . . 1 . . Fabricators . | . . . . . . . . . . . . . . Repair Stations . | . . . . . . . . . . . . . . Recycling Units 2 | . . . . . . 1 . . 1 . . . . Recyclers 1 | . . . . . . . . . 1 . . . . Tunnel 1 | . . . . . . 1 . . . . . . . Scanalyzers . | . . . . . . . . . . . . . . Garrison Access . | . . . . . . . . . . . . . . Data Cores Recovered . | . . . . . . . . . . . . . . Used . | . . . . . . . . . . . . . . Hacking Detections 21 | . 1 3 . . . 2 2 . 4 5 1 3 . Full Trace Events 7 | . . 1 . . . . 1 . . 4 . 1 . Feedback Events 1 | . . . . . . . . . . . . 1 . Hackware Fried 1 | . . . . . . . . . . . . 1 . Feedback Blocked 1 | . . . . . . . . . . 1 . . . Robot Schematics Acquired . | . . . . . . . . . . . . . . Robots Built . | . . . . . . . . . . . . . . Authchips . | . . . . . . . . . . . . . . Time . | . . . . . . . . . . . . . . Total Robot Build Rating . | . . . . . . . . . . . . . . Part Schematics Acquired 1 | . . . . . . . . . 1 . . . . Parts Built 2 | . . . . . . . . . . 2 . . . Authchips . | . . . . . . . . . . . . . . Time 111 | . . . . . . . . . . 111 . . . Total Part Build Rating 8 | . . . . . . . . . . 8 . . . Parts Repaired 1 | . . . . . . . . . 1 . . . . Time 22 | . . . . . . . . . 22 . . . . Parts Recycled . | . . . . . . . . . . . . . . Recycled Matter . | . . . . . . . . . . . . . . Retrieved Matter . | . . . . . . . . . . . . . . Retrieved Components . | . . . . . . . . . . . . . . Parts Scanalyzed . | . . . . . . . . . . . . . . Part Schematics Acquired . | . . . . . . . . . . . . . . Parts Damaged . | . . . . . . . . . . . . . . Bothacking | -11 -10 -9 -9 -9 -8 -8 -7 -7 -6 -5 -5 -5 -5 ------------ Run | Yrd Mat Mat Min Exi Min Mat Fac DSF Fac Fac Gar Fac Upp Used RIF Installer . | . . . . . . . . . . . . . . Robots Hacked 1 | . . . . . . . . . 1 . . . . Non-combat 1 | . . . . . . . . . 1 . . . . Combat . | . . . . . . . . . . . . . . Robot Hacks Applied 1 | . . . . . . . . . 1 . . . . no_distress 1 | . . . . . . . . . 1 . . . . Relay Couplers Released . | . . . . . . . . . . . . . . Fabnet Peak Effective % . | . . . . . . . . . . . . . . Robots Rewired 2 | . . . . . . . . . . . 2 . . Allies Hacked . | . . . . . . . . . . . . . . Hacks Repelled . | . . . . . . . . . . . . . . Allies | -11 -10 -9 -9 -9 -8 -8 -7 -7 -6 -5 -5 -5 -5 -------- Run | Yrd Mat Mat Min Exi Min Mat Fac DSF Fac Fac Gar Fac Upp Total Allies 6 | . . . 3 . . . . . 1 . 2 . . Largest Group 3 | . . . 3 2 1 . . . 1 . 2 . . Highest-Rated Group 232 | . . . 40 24 16 . . . 10 . 232 . . Highest-Rated Ally 116 | . . . 16 16 16 . . . 10 . 116 . . Total Orders 7 | . . . 2 . . . . . 1 . 1 3 . ROAM 2 | . . . . . . . . . 1 . 1 . . GUARD 1 | . . . 1 . . . . . . . . . . AID 1 | . . . 1 . . . . . . . . . . EXPLORE 3 | . . . . . . . . . . . . 3 . Ally Attacks 55 | . . . 12 . 24 . . . . . 19 . . Total Damage 1522 | . . . 118 . 212 . . . . . 1192 . . Kills 12 | . . . 1 . 2 . . . . . 9 . . Allies Corrupted . | . . . . . . . . . . . . . . Allies Melted . | . . . . . . . . . . . . . . Intel | -11 -10 -9 -9 -9 -8 -8 -7 -7 -6 -5 -5 -5 -5 ------- Run | Yrd Mat Mat Min Exi Min Mat Fac DSF Fac Fac Gar Fac Upp Robot Analysis Total . | . . . . . . . . . . . . . . Derelict Logs Recovered 2 | . . . 2 . . . . . . . . . . Drone Launches 3 | . . . . . . . . . . . . 3 . Drone Recoveries 1 | . . . . . . . . . . . . 1 . Exploration | -11 -10 -9 -9 -9 -8 -8 -7 -7 -6 -5 -5 -5 -5 ------------- Run | Yrd Mat Mat Min Exi Min Mat Fac DSF Fac Fac Gar Fac Upp Turns Passed 6890 | . 222 323 1051 370 1150 609 52 350 1032 452 704 334 241 Spaces Moved 6019 | 1 170 180 560 242 649 257 39 209 1143 1142 728 399 300 Core 57 | . . . . . . . . . . . 20 37 . Treads 26 | . . . . . 26 . . . . . . . . Legs 1836 | 1 170 180 560 116 567 182 . 60 . . . . . Wheels 343 | . . . . 126 56 75 39 47 . . . . . Hover 662 | . . . . . . . . . . . . 362 300 Flight 3095 | . . . . . . . . 102 1143 1142 708 . . Fastest Speed 20 | 120 120 120 120 110 120 120 130 110 28 23 20 70 70 Average Speed 72 | 120 120 120 123 150 122 123 130 133 32 27 29 77 71 Slowest Speed 530 | 120 120 120 190 190 190 190 130 530 111 32 100 126 150 Overloaded Moves 233 | . . . . . . . . . . 101 132 . . Propulsion Burnouts 1 | . . . . . . . . . . . 1 . . Robots Hopped 64 | . . . . . . . . . 4 17 43 . . Cave-ins Triggered 4 | . . . . . . . . 2 1 . . . 1 Exploration Rate (%) 42 | 1 41 22 90 62 100 30 1 93 25 20 56 14 38 Regions Visited 13 Branch Regions 4 Pre-discovered Areas 3 | . . . 2 . . 1 . . . . . . . Known Exits Taken 3 | . . . . . . . 1 . 1 1 . . . Unknown Exits Taken 8 | 1 1 1 1 1 1 1 . . . . . 1 . Scrap Searched 3 | . . . 1 . 1 . . . . . . . 1 Spaces Dug 40 | . . . . . . . . . 18 9 7 1 5 Terrain Destroyed 124 | . . . . . . 60 . 24 18 9 7 1 5 Melee 40 | . . . . . . . . . 18 9 7 1 5 Projectile 2 | . . . . . . . . 2 . . . . . AOE 82 | . . . . . . 60 . 22 . . . . . Terrain Rammed . | . . . . . . . . . . . . . . Walls Destroyed . | . . . . . . . . . . . . . . Machines Disabled . | . . . . . . . . . . . . . . Actions | -11 -10 -9 -9 -9 -8 -8 -7 -7 -6 -5 -5 -5 -5 --------- Run | Yrd Mat Mat Min Exi Min Mat Fac DSF Fac Fac Gar Fac Upp Total 8217 | . 186 248 913 250 932 502 41 272 1774 1245 1125 414 315 Wait 1771 | . 1 30 338 . 221 185 . 26 582 74 311 3 . Move 5892 | . 169 179 559 241 648 256 38 208 1134 1107 656 398 299 Hop 47 | . . . . . . . . . 4 17 26 . . Pick Up 46 | . 3 4 4 2 7 5 1 7 5 3 4 1 . Fast Attach 57 | . 2 3 1 . 5 9 . 10 3 7 4 8 5 Attach 31 | . 2 2 . 1 1 1 1 5 10 4 3 1 . Detach 16 | . 3 . . 1 1 2 . 5 2 2 . . . Swap 18 | . 1 3 2 1 3 3 . . 4 . 1 . . Drop 64 | . 2 7 5 4 7 12 1 7 8 4 3 1 3 Fire 108 | . 3 20 4 . 39 29 . 4 . . 9 . . Melee 70 | . . . . . . . . . 22 10 29 2 7 Ram 7 | . . . . . . . . . . . 7 . . Kick . | . . . . . . . . . . . . . . Crush . | . . . . . . . . . . . . . . Escape Stasis 90 | . . . . . . . . . . 17 72 . 1 Rewire . | . . . . . . . . . . . . . . Trap . | . . . . . . . . . . . . . . Miscellaneous . | . . . . . . . . . . . . . . Route ------- -11/Scrapyard -10/Materials -9/Materials -9/Mines (discovered 3 exits: *Mat x2 / *Exi) -9/Exiles -8/Mines (discovered 2 exits: *Mat x2) -8/Materials -7/Factory -7/DSF -6/Factory (discovered 8 exits: *Fac x4 / Low x2 / Ext x2) -5/Factory (discovered 2 exits: [*Fac] / Gar) -5/Garrison (discovered 3 exits: *Fac x3) -5/Factory -5/Upper Caves History --------- Turn | Location | Event 1 | -11/Scrapyard | Discovered new exit (range 0) 1 | -11/Scrapyard | Entered Materials 198 | -10/Materials | Discovered new exit (range 12) 223 | -10/Materials | Entered another Materials area 223 | -9/Materials | Evolved 2 slots: Propulsion x2 300 | -9/Materials | Build established: Mutant 419 | -9/Materials | Discovered new exit (range 14) 546 | -9/Materials | Entered Mines 556 | -9/Mines | Learned location of Storage (-9) 577 | -9/Mines | Met a Derelict bent on vengeance 683 | -9/Mines | Assisted by bots powering up and referring to "LRC-V3" 699 | -9/Mines | Discovered new exit (range 9) 1132 | -9/Mines | Discovered new exit (range 10) 1429 | -9/Mines | YI-UF0 nonchalantly dropped a Grenade Launcher on the ground 1585 | -9/Mines | Deemed a non-threat by the Exiles lab entrance 1587 | -9/Mines | Discovered new exit (range 5) 1597 | -9/Mines | Entered Exiles 1597 | -9/Exiles | Accompanied by 2 allies 1646 | -9/Exiles | Met 8R-AWN 1679 | -9/Exiles | Met EX-HEX 1738 | -9/Exiles | Met EX-BIN 1764 | -9/Exiles | Aligned with FarCom system 1766 | -9/Exiles | Given EX-Vault access code 1812 | -9/Exiles | Opened EX-Vault 1826 | -9/Exiles | Found AWS/Thermal 1850 | -9/Exiles | Warned to stay clear of 0b10 Research branches 1881 | -9/Exiles | Met EX-DEC 1949 | -9/Exiles | Discovered new exit (range 12) 1967 | -9/Exiles | Left Exiles lab with AWS/Thermal 1967 | -9/Exiles | Entered Mines 1967 | -8/Mines | Accompanied by 2 allies 2457 | -8/Mines | Build established: Scavenger-Mutant 3029 | -8/Mines | Discovered new exit (range 8) 3113 | -8/Mines | Discovered new exit (range 5) 3117 | -8/Mines | Entered Materials 3117 | -8/Materials | Evolved 2 slots: Utility x2 3658 | -8/Materials | Destroyed 8 combat bots 3704 | -8/Materials | Discovered new exit (range 11) 3726 | -8/Materials | Entered Factory 3726 | -7/Factory | Evolved 2 slots: Utility x2 3729 | -7/Factory | Identified exit to DSF 3778 | -7/Factory | Entered DSF 3807 | -7/DSF | Additional patrols routed to DSF 3880 | -7/DSF | Crushed by falling debris 3893 | -7/DSF | Crushed by falling debris 3930 | -7/DSF | Lost 8 parts (2p3n2u1w) 3944 | -7/DSF | Discovered new exit (range 14) 4089 | -7/DSF | Core integrity fell below 50% 4094 | -7/DSF | Sterilization system engaged 4114 | -7/DSF | Ambient heat levels rising (+10) 4128 | -7/DSF | Entered Factory 4128 | -6/Factory | Evolved 2 slots: Power x1, Propulsion x1 4183 | -6/Factory | Identified exit to Factory 4429 | -6/Factory | Build established: Wizard-Sprinter 4505 | -6/Factory | Identified exit to Lower Caves 4505 | -6/Factory | Identified exit to Extension 4922 | -6/Factory | Crushed by falling debris 4922 | -6/Factory | System corruption reached 10% 4953 | -6/Factory | Lost 4 parts (2n2u) 5057 | -6/Factory | Repaired Xenon Bombardment Thruster 5160 | -6/Factory | Entered another Factory area 5160 | -5/Factory | Evolved 2 slots: Propulsion x1, Utility x1 5328 | -5/Factory | Discovered new exit (range 16) 5379 | -5/Factory | Fabricated Cld. VTOL Module? 5467 | -5/Factory | Fabricated Cld. VTOL Module? 5590 | -5/Factory | Lost 4 parts (2n1u1w) 5610 | -5/Factory | Identified exit to Garrison 5612 | -5/Factory | Entered Garrison 5614 | -5/Garrison | Spotted B-75 Beast 5620 | -5/Garrison | Rewired B-86 Titan 5626 | -5/Garrison | Rewired B-86 Titan 5656 | -5/Garrison | Allies destroyed B-75 Beast 5796 | -5/Garrison | Triggered checkpoint 5829 | -5/Garrison | Build established: Hacker-Sprinter 5933 | -5/Garrison | Spotted B-75 Beast 6021 | -5/Garrison | Triggered checkpoint 6238 | -5/Garrison | Discovered new exit (range 8) 6245 | -5/Garrison | Attempted to access garrison exit controls, blocked by remote lockdown 6250 | -5/Garrison | Discovered new exit (range 7) 6250 | -5/Garrison | Discovered new exit (range 47) 6250 | -5/Garrison | Discovered new exit (range 71) 6250 | -5/Garrison | Identified exit to Factory 6292 | -5/Garrison | Core integrity fell below 50% 6316 | -5/Garrison | Entered Factory 6318 | -5/Factory | Identified exit to DSF 6344 | -5/Factory | Lost 15 parts (3p5n5u2w) 6583 | -5/Factory | Discovered new exit (range 8) 6603 | -5/Factory | System Shield fried by hacking feedback 6650 | -5/Factory | Entered Upper Caves 6779 | -5/Upper Caves | Crushed by falling debris 6820 | -5/Upper Caves | Core integrity fell below 20% 6891 | -5/Upper Caves | Destroyed by S-27 Virus with Autogun Last Messages --------------- 06801_ Acquired Prototype Device. 06801_ Identified Prc. Matter Filter. 06803_ Acquired Adv. Power Amplifier. 06805_ Dropped Prc. Matter Filter. 06807_ Acquired Imp. Transmission Jammer. 06809_ Acquired Imp. Utility Shielding. 06813_ Med. Treads fries itself beyond repair. 06813_ Sneak attack on G-50 Soldier. 06815_ Lrg. Storage Unit fries itself beyond repair. 06827_ System corrupted: Gyrokinetic Inverter rejected. 06827_ Critical hit (Burn: +37). 06827_ Acquired Gyrokinetic Inverter. 06829_ Nuclear Pulse Array destroyed. 06829_ Critical hit (Burn: +37). 06847_ Cmb. Gravmag System destroyed. 06851_ Dropped Adv. Power Amplifier. 06851_ Dropped Imp. Utility Shielding. 06852_ Neutrino Core destroyed. 06876_ Hacking Suite destroyed. 06885_ WF-81H(S) destroyed. Map ----- +----------------------------------------------------+ | ????????????????????# #?? ????????? | | ???????????????????## ##?# ## #????????? | | ?????????????????### ? #?# #? #????????? | | ????????????????## ?# ### #? #????????? | | ??????????????? ## ## ## #????????? | | ??????????????# #????????? | | ??????????????# #????????? | | ???????????????# ?# #????????? | | ?????????????### ?# % ## #????????? | | ????????????? ## ## ## #????????? | | ???????????? ### #????????? | | ???????????? #### ### #????????# | | ???????????? ######?# #??????### | | ???????????? ##??### ##?????# | | ???????????? #?## ##?????# | | ?????????????#" #?# #??????# | | ??????????? "" #### #??????? | | ??????????? ##?# ##??????? | | ???????????? " #??# ######??? | | ?????????????#" ####??## ## #### | | ?????????????## #??????# | | ????????????# #??????# | | ????????????# ##?????# ## # | | ????????????# #### #?????##?## ## | | ????????????# #?### #?????????## ##### | | ????????????## ??# @ ##??????????# ##??# | | ?????????????# ???# ###???????????#####??# | | ?????????????# ????#####????????????????????# | | ???????????????????????????????????????????????### | | ?????????????????????????????????????????????????? | | ?????????????????????????????????????????????????? | | ?????????????????????????????????????????????????? | | ?????????????????????????????????????????????????? | | ?????????????????????????????????????????????????? | | ?????????????????????????????????????????????????? | | ?????????????????????????????????????????????????? | | ?????????????????????????????????????????????????? | | ?????????????????????????????????????????????????? | | ?????????????????????????????????????????????????? | | ?????????????????????????????????????????????????? | | ?????????????????????????????????????????????????? | | ?????????????????????????????????????????????????? | | ?????????????????????????????????????????????????? | | ?????????????????????????????????????????????????? | | ?????????????????????????????????????????????????? | | ?????????????????????????????????????????????????? | | ?????????????????????????????????????????????????? | | ?????????????????????????????????????????????????? | | | | | +----------------------------------------------------+ Best States ------------- Heat Dissipation 40 Energy Generation 31 Energy Capacity 500 Matter Stores 300 Matter Capacity 300 Sight Range 16 Terrain Scan Density 10 Jamming Range 14 Power Amplification 30 Additional Mass Support 9 Armor Coverage 150 Resistance: TH 10 Utility Shielding 66 Weapon Shielding 66 Evasion (%) 65 Targeting Accuracy 6 Melee Accuracy 6 Armor Integrity Analysis 30 Recoil Reduction 2 Offensive Hacking 40 Defensive Hacking 30 Authchip Count 2 Item Schematics ----------------- Cld. VTOL Module | -6/Factory | Hacked Robot Schematics ------------------ None Fabricated ------------ Cld. VTOL Module | x1 | -5/Factory Cld. VTOL Module | x1 | -5/Factory Alien Tech Used ----------------- None Achievements -------------- A New Friend Just What I Needed Challenges ------------ None Game ------ Seed BeamScatterRecalibrator Manual? 0 Play Time 01:43:18 Cumulative 37.5 hours Start 2024.04.15 @ 20:19:39 End 2024.04.15 @ 23:39:25 Sessions 5 Manual Loads 0 Difficulty Rogue Special Mode None Game No. 58 Rogue 57 Adventurer 1 Explorer 0 Win Type - Total 1 Types 1/0/0/0/0/0/0/0/0 Lore% 23 Gallery% 45 Achievement% 37 Wizard Run 0 Options --------- Layout 0 ASCII 0 Keyboard 0 Movement Numpad Keybinds 0 Fullscreen 1 Font 18/SmallcapsGlow Map View 76x50 Zoom Use 0% Tactical HUD 1 Map Filters NONE Filters NONE Steam 1 RUN: 3b96f5de-26c1-4cc4-a8c4-462182d4fee8